[Event "Titled Tuesday Blitz October 25 Early 2022"]
[White "Baskakov, Egor"]
[Black "Jobava, Baadur"]
[WhiteFideId "24197866"]
[BlackFideId "13601520"]
[WhiteElo "2211"]
[BlackElo "2582"]
[Result "0-1"]
[Round "06"]
[TimeControl "180+1"]
[Date "2022.10.25"]
[WhiteClock "0:02:46"]
[BlackClock "0:02:25"]

1. c4 {[%clk 0:03:00]}  e5 {[%clk 0:02:59]} 2. Nc3 {[%clk 0:03:00]}  d6 {[%clk 0:03:00]} 3. g3 {[%clk 0:02:59]}  f5 {[%clk 0:03:00]} 4. Bg2 {[%clk 0:02:59]}  c6 {[%clk 0:03:00]} 5. e3 {[%clk 0:02:59]}  Nf6 {[%clk 0:03:00]} 6. Nge2 {[%clk 0:03:00]}  Be6 {[%clk 0:03:01]} 7. d4 {[%clk 0:03:01]}  Bxc4 {[%clk 0:02:57]} 8. O-O {[%clk 0:02:56]}  Be7 {[%clk 0:02:56]} 9. Re1 {[%clk 0:02:57]}  O-O {[%clk 0:02:56]} 10. b3 {[%clk 0:02:57]}  Bf7 {[%clk 0:02:55]} 11. Bb2 {[%clk 0:02:57]}  Nbd7 {[%clk 0:02:54]} 12. Qc2 {[%clk 0:02:57]}  e4 {[%clk 0:02:54]} 13. d5 {[%clk 0:02:53]}  Nxd5 {[%clk 0:02:49]} 14. Nxd5 {[%clk 0:02:52]}  Bxd5 {[%clk 0:02:50]} 15. Rad1 {[%clk 0:02:52]}  Bf6 {[%clk 0:02:38]} 16. Nf4 {[%clk 0:02:51]}  Bxb2 {[%clk 0:02:35]} 17. Nxd5 {[%clk 0:02:49]}  Be5 {[%clk 0:02:35]} 18. Nf4 {[%clk 0:02:48]}  Bxf4 {[%clk 0:02:34]} 19. gxf4 {[%clk 0:02:47]}  d5 {[%clk 0:02:34]} 20. f3 {[%clk 0:02:47]}  Nf6 {[%clk 0:02:32]} 21. fxe4 {[%clk 0:02:47]}  Nxe4 {[%clk 0:02:32]} 22. Re2 {[%clk 0:02:46]}  Qe7 {[%clk 0:02:30]} 23. Kh1 {[%clk 0:02:46]}  Rae8 {[%clk 0:02:30]} 24. Rg1 {[%clk 0:02:47]}  Rf6 {[%clk 0:02:28]} 25. Bf3 {[%clk 0:02:47]}  Rg6 {[%clk 0:02:24]} 26. Rxg6 {[%clk 0:02:46]}  hxg6 {[%clk 0:02:25]} 27. Rg2 {[%clk 0:02:46]}  Qf6 {[%clk 0:02:25]} 0-1


[Site "https://www.chess.com"]

[Event "Titled Tuesday Blitz October 25 Early 2022"]
[White "Gharibyan, Mamikon"]
[Black "Hasangatin, Ramil"]
[WhiteFideId "13308300"]
[BlackFideId "4122160"]
[WhiteElo "2378"]
[BlackElo "2358"]
[Result "1-0"]
[Round "06"]
[TimeControl "180+1"]
[Date "2022.10.25"]
[WhiteClock "0:00:10"]
[BlackClock "0:00:07"]

1. Nf3 {[%clk 0:03:00]}  d5 {[%clk 0:02:57]} 2. g3 {[%clk 0:03:00]}  Bf5 {[%clk 0:02:55]} 3. Bg2 {[%clk 0:03:00]}  e6 {[%clk 0:02:55]} 4. O-O {[%clk 0:02:58]}  h6 {[%clk 0:02:54]} 5. c4 {[%clk 0:02:58]}  c6 {[%clk 0:02:53]} 6. d3 {[%clk 0:02:55]}  dxc4 {[%clk 0:02:52]} 7. dxc4 {[%clk 0:02:53]}  Qxd1 {[%clk 0:02:53]} 8. Rxd1 {[%clk 0:02:54]}  Nf6 {[%clk 0:02:43]} 9. Nc3 {[%clk 0:02:52]}  Nbd7 {[%clk 0:02:35]} 10. b3 {[%clk 0:02:40]}  Bc2 {[%clk 0:02:34]} 11. Rd2 {[%clk 0:02:34]}  Bh7 {[%clk 0:02:34]} 12. Bb2 {[%clk 0:02:34]}  Bb4 {[%clk 0:02:32]} 13. Rdd1 {[%clk 0:02:30]}  O-O-O {[%clk 0:02:21]} 14. h4 {[%clk 0:02:20]}  Rhe8 {[%clk 0:02:11]} 15. Bh3 {[%clk 0:02:09]}  Bf8 {[%clk 0:02:07]} 16. g4 {[%clk 0:02:04]}  Ne4 {[%clk 0:02:06]} 17. g5 {[%clk 0:02:01]}  hxg5 {[%clk 0:01:47]} 18. Nxe4 {[%clk 0:01:50]}  Bxe4 {[%clk 0:01:48]} 19. Nxg5 {[%clk 0:01:50]}  Bg6 {[%clk 0:01:48]} 20. Bd4 {[%clk 0:01:49]}  Nc5 {[%clk 0:01:20]} 21. Bg4 {[%clk 0:01:43]}  Ne4 {[%clk 0:01:16]} 22. Nxe4 {[%clk 0:01:33]}  Bxe4 {[%clk 0:01:15]} 23. Bxa7 {[%clk 0:01:33]}  Be7 {[%clk 0:01:10]} 24. f3 {[%clk 0:00:55]}  Bc2 {[%clk 0:01:06]} 25. Rdc1 {[%clk 0:00:46]}  Bh7 {[%clk 0:01:05]} 26. a4 {[%clk 0:00:35]}  f5 {[%clk 0:00:51]} 27. Bh3 {[%clk 0:00:32]}  Bxh4 {[%clk 0:00:52]} 28. Be3 {[%clk 0:00:26]}  g5 {[%clk 0:00:51]} 29. a5 {[%clk 0:00:25]}  Kd7 {[%clk 0:00:31]} 30. a6 {[%clk 0:00:24]}  Rb8 {[%clk 0:00:31]} 31. Rd1+ {[%clk 0:00:22]}  Ke7 {[%clk 0:00:31]} 32. Bc5+ {[%clk 0:00:22]}  Kf6 {[%clk 0:00:30]} 33. a7 {[%clk 0:00:20]}  Ra8 {[%clk 0:00:29]} 34. Rd7 {[%clk 0:00:20]}  Bg6 {[%clk 0:00:26]} 35. Rxb7 {[%clk 0:00:21]}  Bg3 {[%clk 0:00:25]} 36. Rd1 {[%clk 0:00:18]}  Rh8 {[%clk 0:00:15]} 37. Bg2 {[%clk 0:00:18]}  f4 {[%clk 0:00:14]} 38. Rdd7 {[%clk 0:00:13]}  Bh2+ {[%clk 0:00:10]} 39. Kf1 {[%clk 0:00:13]}  Bg3 {[%clk 0:00:11]} 40. Bd6 {[%clk 0:00:10]}  Rhe8 {[%clk 0:00:10]} 41. Rb8 {[%clk 0:00:09]}  Rxa7 {[%clk 0:00:07]} 42. Rxa7 {[%clk 0:00:09]}  Rxb8 {[%clk 0:00:08]} 43. Bxb8 {[%clk 0:00:09]}  Bf5 {[%clk 0:00:08]} 44. b4 {[%clk 0:00:09]}  e5 {[%clk 0:00:08]} 45. Ra6 {[%clk 0:00:09]}  Bd7 {[%clk 0:00:07]} 46. b5 {[%clk 0:00:09]}  Ke6 {[%clk 0:00:07]} 47. bxc6 {[%clk 0:00:09]}  Bc8 {[%clk 0:00:07]} 48. Bh3+ {[%clk 0:00:10]}  g4 {[%clk 0:00:07]} 49. Bxg4+ {[%clk 0:00:10]} 1-0


[Site "https://www.chess.com"]

[Event "Titled Tuesday Blitz October 25 Early 2022"]
[White "Hayrapetyan, Hovik"]
[Black "Indjic, Aleksandar"]
[WhiteFideId "13302639"]
[BlackFideId "911925"]
[WhiteElo "2376"]
[BlackElo "2592"]
[Result "0-1"]
[Round "06"]
[TimeControl "180+1"]
[Date "2022.10.25"]
[WhiteClock "0:00:06"]
[BlackClock "0:01:35"]

1. d4 {[%clk 0:03:00]}  Nf6 {[%clk 0:02:58]} 2. c4 {[%clk 0:03:00]}  c5 {[%clk 0:02:58]} 3. Nc3 {[%clk 0:03:01]}  cxd4 {[%clk 0:02:58]} 4. Qxd4 {[%clk 0:03:01]}  Nc6 {[%clk 0:02:57]} 5. Qd1 {[%clk 0:03:00]}  e6 {[%clk 0:02:57]} 6. Nf3 {[%clk 0:02:57]}  Bb4 {[%clk 0:02:57]} 7. Bd2 {[%clk 0:02:57]}  d5 {[%clk 0:02:57]} 8. a3 {[%clk 0:02:57]}  Bd6 {[%clk 0:02:27]} 9. e3 {[%clk 0:02:53]}  O-O {[%clk 0:02:26]} 10. Be2 {[%clk 0:02:50]}  a6 {[%clk 0:02:26]} 11. cxd5 {[%clk 0:02:46]}  exd5 {[%clk 0:02:26]} 12. O-O {[%clk 0:02:46]}  Qe7 {[%clk 0:02:23]} 13. Re1 {[%clk 0:02:38]}  Rd8 {[%clk 0:02:23]} 14. Bf1 {[%clk 0:02:38]}  Bg4 {[%clk 0:02:19]} 15. Ne2 {[%clk 0:02:37]}  h5 {[%clk 0:02:13]} 16. h3 {[%clk 0:02:32]}  Bxf3 {[%clk 0:02:11]} 17. gxf3 {[%clk 0:02:33]}  Ne5 {[%clk 0:02:11]} 18. Nd4 {[%clk 0:02:29]}  Qd7 {[%clk 0:02:07]} 19. Bc3 {[%clk 0:02:24]}  Rac8 {[%clk 0:02:05]} 20. Qb1 {[%clk 0:02:08]}  Bc5 {[%clk 0:02:03]} 21. Bg2 {[%clk 0:02:05]}  Bxd4 {[%clk 0:02:00]} 22. Bxd4 {[%clk 0:02:04]}  Qe6 {[%clk 0:02:00]} 23. Rd1 {[%clk 0:01:57]}  Ng6 {[%clk 0:02:00]} 24. Bxf6 {[%clk 0:01:43]}  Qxf6 {[%clk 0:01:59]} 25. Rd4 {[%clk 0:01:44]}  Nh4 {[%clk 0:01:58]} 26. Rf4 {[%clk 0:01:36]}  Qg5 {[%clk 0:01:57]} 27. Qf1 {[%clk 0:01:32]}  Rc2 {[%clk 0:01:55]} 28. b4 {[%clk 0:01:21]}  Rdc8 {[%clk 0:01:54]} 29. Rd1 {[%clk 0:00:20]}  Rc1 {[%clk 0:01:46]} 30. Rxh4 {[%clk 0:00:12]}  Rxd1 {[%clk 0:01:46]} 31. Qxd1 {[%clk 0:00:12]}  Qxh4 {[%clk 0:01:46]} 32. Qxd5 {[%clk 0:00:12]}  Rc1+ {[%clk 0:01:45]} 33. Kh2 {[%clk 0:00:12]}  Qxf2 {[%clk 0:01:44]} 34. Qxh5 {[%clk 0:00:12]}  Qxe3 {[%clk 0:01:42]} 35. Qg4 {[%clk 0:00:09]}  Qg1+ {[%clk 0:01:38]} 36. Kg3 {[%clk 0:00:09]}  Rc2 {[%clk 0:01:38]} 37. Qe4 {[%clk 0:00:06]}  Qxg2+ {[%clk 0:01:37]} 38. Kh4 {[%clk 0:00:06]}  Rc6 {[%clk 0:01:35]} 0-1


[Site "https://www.chess.com"]

[Event "Titled Tuesday Blitz October 25 Early 2022"]
[White "Korchmar, Vasiliy"]
[Black "Vasquez Schroeder, Rodrigo"]
[WhiteFideId "24131750"]
[BlackFideId "3400042"]
[WhiteElo "2370"]
[BlackElo "2577"]
[Result "1-0"]
[Round "06"]
[TimeControl "180+1"]
[Date "2022.10.25"]
[WhiteClock "0:00:05"]
[BlackClock "0:00:38"]

1. e4 {[%clk 0:03:00]}  c6 {[%clk 0:02:59]} 2. d4 {[%clk 0:03:00]}  d5 {[%clk 0:03:00]} 3. e5 {[%clk 0:03:00]}  Bf5 {[%clk 0:02:59]} 4. c4 {[%clk 0:03:00]}  e6 {[%clk 0:02:57]} 5. Nc3 {[%clk 0:02:55]}  dxc4 {[%clk 0:02:53]} 6. Bxc4 {[%clk 0:02:55]}  Nd7 {[%clk 0:02:54]} 7. Nge2 {[%clk 0:02:54]}  Nb6 {[%clk 0:02:54]} 8. Bb3 {[%clk 0:02:54]}  Ne7 {[%clk 0:02:53]} 9. Ng3 {[%clk 0:02:54]}  Bg6 {[%clk 0:02:53]} 10. O-O {[%clk 0:02:55]}  Nf5 {[%clk 0:02:47]} 11. Nxf5 {[%clk 0:02:44]}  Bxf5 {[%clk 0:02:47]} 12. g4 {[%clk 0:02:45]}  Bg6 {[%clk 0:02:44]} 13. f4 {[%clk 0:02:45]}  Qh4 {[%clk 0:02:41]} 14. Be3 {[%clk 0:02:14]}  O-O-O {[%clk 0:02:40]} 15. f5 {[%clk 0:02:12]}  exf5 {[%clk 0:02:39]} 16. gxf5 {[%clk 0:02:13]}  Bh5 {[%clk 0:02:39]} 17. Qe1 {[%clk 0:02:09]}  Qg4+ {[%clk 0:02:17]} 18. Kh1 {[%clk 0:02:07]}  Bb4 {[%clk 0:02:10]} 19. Qg3 {[%clk 0:01:49]}  f6 {[%clk 0:01:45]} 20. Qxg4 {[%clk 0:00:48]}  Bxg4 {[%clk 0:01:44]} 21. Ne4 {[%clk 0:00:41]}  fxe5 {[%clk 0:01:35]} 22. dxe5 {[%clk 0:00:40]}  Rhe8 {[%clk 0:01:35]} 23. Be6+ {[%clk 0:00:31]}  Rxe6 {[%clk 0:01:34]} 24. fxe6 {[%clk 0:00:31]}  Bxe6 {[%clk 0:01:35]} 25. Bc5 {[%clk 0:00:22]}  Bd5 {[%clk 0:01:20]} 26. Bxb4 {[%clk 0:00:21]}  Bxe4+ {[%clk 0:01:21]} 27. Kg1 {[%clk 0:00:22]}  Nd5 {[%clk 0:01:20]} 28. Bd6 {[%clk 0:00:22]}  Bg6 {[%clk 0:01:19]} 29. Rf8 {[%clk 0:00:22]}  Kd7 {[%clk 0:01:16]} 30. Rxd8+ {[%clk 0:00:15]}  Kxd8 {[%clk 0:01:16]} 31. Rf1 {[%clk 0:00:15]}  Kd7 {[%clk 0:01:14]} 32. Rf8 {[%clk 0:00:14]}  Ke6 {[%clk 0:01:05]} 33. Rg8 {[%clk 0:00:13]}  Kf7 {[%clk 0:01:04]} 34. Rb8 {[%clk 0:00:13]}  b6 {[%clk 0:01:04]} 35. Rb7+ {[%clk 0:00:11]}  Ke6 {[%clk 0:01:04]} 36. Rxa7 {[%clk 0:00:09]}  c5 {[%clk 0:01:01]} 37. Rxg7 {[%clk 0:00:08]}  c4 {[%clk 0:01:02]} 38. Rb7 {[%clk 0:00:06]}  Be4 {[%clk 0:01:01]} 39. Rb8 {[%clk 0:00:04]}  Nf4 {[%clk 0:01:00]} 40. Kf2 {[%clk 0:00:04]}  Nd3+ {[%clk 0:00:58]} 41. Ke3 {[%clk 0:00:04]}  Bg6 {[%clk 0:00:56]} 42. Rxb6 {[%clk 0:00:04]}  Kd5 {[%clk 0:00:56]} 43. a4 {[%clk 0:00:04]}  Be8 {[%clk 0:00:41]} 44. a5 {[%clk 0:00:04]}  Bc6 {[%clk 0:00:42]} 45. a6 {[%clk 0:00:05]}  Nc5 {[%clk 0:00:37]} 46. Bxc5 {[%clk 0:00:04]}  Kxc5 {[%clk 0:00:37]} 47. Rxc6+ {[%clk 0:00:04]}  Kxc6 {[%clk 0:00:38]} 48. a7 {[%clk 0:00:05]}  Kb7 {[%clk 0:00:38]} 49. e6 {[%clk 0:00:05]} 1-0


[Site "https://www.chess.com"]

[Event "Titled Tuesday Blitz October 25 Early 2022"]
[White "Kuderinov, Kirill"]
[Black "Wagner, Dennis"]
[WhiteFideId "13701568"]
[BlackFideId "24650684"]
[WhiteElo "2465"]
[BlackElo "2470"]
[Result "1-0"]
[Round "06"]
[TimeControl "180+1"]
[Date "2022.10.25"]
[WhiteClock "0:00:21"]
[BlackClock "0:00:13"]

1. e4 {[%clk 0:03:00]}  c5 {[%clk 0:02:59]} 2. Nf3 {[%clk 0:03:00]}  d6 {[%clk 0:02:59]} 3. Bb5+ {[%clk 0:03:00]}  Nd7 {[%clk 0:02:59]} 4. O-O {[%clk 0:03:00]}  a6 {[%clk 0:02:58]} 5. Bxd7+ {[%clk 0:02:59]}  Bxd7 {[%clk 0:02:58]} 6. Re1 {[%clk 0:03:00]}  Nf6 {[%clk 0:02:57]} 7. c3 {[%clk 0:02:58]}  Bc6 {[%clk 0:02:53]} 8. d3 {[%clk 0:02:58]}  e6 {[%clk 0:02:51]} 9. Nbd2 {[%clk 0:02:58]}  Be7 {[%clk 0:02:51]} 10. Nf1 {[%clk 0:02:54]}  O-O {[%clk 0:02:50]} 11. Ng3 {[%clk 0:02:54]}  b5 {[%clk 0:02:45]} 12. d4 {[%clk 0:02:53]}  a5 {[%clk 0:02:42]} 13. Bg5 {[%clk 0:02:44]}  h6 {[%clk 0:02:41]} 14. Bxf6 {[%clk 0:02:44]}  Bxf6 {[%clk 0:02:42]} 15. Qe2 {[%clk 0:02:34]}  b4 {[%clk 0:02:35]} 16. Rad1 {[%clk 0:02:31]}  cxd4 {[%clk 0:02:30]} 17. cxd4 {[%clk 0:02:30]}  Qb6 {[%clk 0:02:30]} 18. Nh5 {[%clk 0:02:26]}  Be7 {[%clk 0:02:23]} 19. d5 {[%clk 0:02:25]}  Bb5 {[%clk 0:02:21]} 20. Qd2 {[%clk 0:02:25]}  e5 {[%clk 0:02:17]} 21. Ng3 {[%clk 0:02:25]}  Bd7 {[%clk 0:02:10]} 22. Rc1 {[%clk 0:02:19]}  Rfc8 {[%clk 0:01:55]} 23. Rxc8+ {[%clk 0:02:13]}  Rxc8 {[%clk 0:01:56]} 24. Rc1 {[%clk 0:02:13]}  Rc7 {[%clk 0:01:56]} 25. Rxc7 {[%clk 0:02:06]}  Qxc7 {[%clk 0:01:57]} 26. h3 {[%clk 0:02:04]}  Qc4 {[%clk 0:01:53]} 27. b3 {[%clk 0:02:03]}  Qc5 {[%clk 0:01:49]} 28. Ne1 {[%clk 0:01:52]}  Bd8 {[%clk 0:01:43]} 29. Qc2 {[%clk 0:01:38]}  Bb6 {[%clk 0:01:41]} 30. Qxc5 {[%clk 0:01:37]}  Bxc5 {[%clk 0:01:42]} 31. Nd3 {[%clk 0:01:34]}  Bd4 {[%clk 0:01:41]} 32. Nf5 {[%clk 0:01:17]}  Bxf5 {[%clk 0:01:39]} 33. exf5 {[%clk 0:01:18]}  e4 {[%clk 0:01:31]} 34. Nc1 {[%clk 0:01:18]}  Kf8 {[%clk 0:01:27]} 35. Ne2 {[%clk 0:01:16]}  Be5 {[%clk 0:01:21]} 36. g4 {[%clk 0:01:02]}  Ke7 {[%clk 0:01:20]} 37. Kg2 {[%clk 0:01:03]}  Kf6 {[%clk 0:01:05]} 38. f4 {[%clk 0:01:03]}  exf3+ {[%clk 0:01:04]} 39. Kxf3 {[%clk 0:01:04]}  Kg5 {[%clk 0:01:05]} 40. Ng3 {[%clk 0:00:48]}  Kh4 {[%clk 0:00:59]} 41. Ne4 {[%clk 0:00:48]}  Kxh3 {[%clk 0:00:57]} 42. Nd2 {[%clk 0:00:48]}  Kh4 {[%clk 0:00:48]} 43. Nc4 {[%clk 0:00:49]}  Kg5 {[%clk 0:00:34]} 44. Nxa5 {[%clk 0:00:35]}  h5 {[%clk 0:00:23]} 45. gxh5 {[%clk 0:00:36]}  Kxf5 {[%clk 0:00:23]} 46. Nc6 {[%clk 0:00:26]}  Bc3 {[%clk 0:00:23]} 47. Ke3 {[%clk 0:00:26]}  Kg5 {[%clk 0:00:22]} 48. Kd3 {[%clk 0:00:24]}  Kxh5 {[%clk 0:00:20]} 49. a4 {[%clk 0:00:25]}  g5 {[%clk 0:00:15]} 50. a5 {[%clk 0:00:24]}  g4 {[%clk 0:00:14]} 51. Ke2 {[%clk 0:00:18]}  g3 {[%clk 0:00:11]} 52. Kf3 {[%clk 0:00:17]}  Be1 {[%clk 0:00:11]} 53. a6 {[%clk 0:00:16]}  Bf2 {[%clk 0:00:11]} 54. a7 {[%clk 0:00:17]}  Bxa7 {[%clk 0:00:12]} 55. Nxa7 {[%clk 0:00:17]}  Kh4 {[%clk 0:00:13]} 56. Kg2 {[%clk 0:00:17]}  f5 {[%clk 0:00:13]} 57. Nb5 {[%clk 0:00:18]}  f4 {[%clk 0:00:14]} 58. Nxd6 {[%clk 0:00:18]}  Kg4 {[%clk 0:00:14]} 59. Nc4 {[%clk 0:00:18]}  f3+ {[%clk 0:00:14]} 60. Kg1 {[%clk 0:00:18]}  Kf5 {[%clk 0:00:04]} 61. Nd2 {[%clk 0:00:16]}  Ke5 {[%clk 0:00:04]} 62. Nxf3+ {[%clk 0:00:15]}  Kxd5 {[%clk 0:00:05]} 63. Nd2 {[%clk 0:00:15]}  Kd4 {[%clk 0:00:05]} 64. Nc4 {[%clk 0:00:16]}  Kc3 {[%clk 0:00:04]} 65. Na5 {[%clk 0:00:16]}  Kd4 {[%clk 0:00:05]} 66. Kg2 {[%clk 0:00:17]}  Kc5 {[%clk 0:00:05]} 67. Kxg3 {[%clk 0:00:18]}  Kb5 {[%clk 0:00:06]} 68. Nc4 {[%clk 0:00:18]}  Kc5 {[%clk 0:00:07]} 69. Kf3 {[%clk 0:00:18]}  Kd4 {[%clk 0:00:08]} 70. Ke2 {[%clk 0:00:18]}  Kc3 {[%clk 0:00:09]} 71. Na5 {[%clk 0:00:19]}  Kc2 {[%clk 0:00:09]} 72. Ke3 {[%clk 0:00:19]}  Kc3 {[%clk 0:00:10]} 73. Ke4 {[%clk 0:00:19]}  Kb2 {[%clk 0:00:11]} 74. Kd4 {[%clk 0:00:19]}  Ka3 {[%clk 0:00:12]} 75. Kc4 {[%clk 0:00:20]}  Kb2 {[%clk 0:00:13]} 76. Kxb4 {[%clk 0:00:20]}  Ka2 {[%clk 0:00:13]} 77. Kc5 {[%clk 0:00:21]} 1-0


[Site "https://www.chess.com"]

[Event "Titled Tuesday Blitz October 25 Early 2022"]
[White "Manelyuk, Daniil"]
[Black "Rohith Krishna S"]
[WhiteFideId "44173920"]
[BlackFideId "46617051"]
[WhiteElo "2209"]
[BlackElo "2270"]
[Result "0-1"]
[Round "06"]
[TimeControl "180+1"]
[Date "2022.10.25"]
[WhiteClock "0:00:07"]
[BlackClock "0:01:27"]

1. e4 {[%clk 0:03:00]}  e6 {[%clk 0:02:59]} 2. d4 {[%clk 0:03:00]}  d5 {[%clk 0:02:59]} 3. Nd2 {[%clk 0:03:01]}  Nf6 {[%clk 0:02:58]} 4. e5 {[%clk 0:03:00]}  Nfd7 {[%clk 0:02:59]} 5. Bd3 {[%clk 0:03:00]}  c5 {[%clk 0:03:00]} 6. c3 {[%clk 0:03:00]}  Nc6 {[%clk 0:03:01]} 7. Ne2 {[%clk 0:03:00]}  Rb8 {[%clk 0:03:01]} 8. O-O {[%clk 0:02:59]}  b5 {[%clk 0:03:01]} 9. f4 {[%clk 0:02:57]}  g6 {[%clk 0:03:01]} 10. Kh1 {[%clk 0:02:54]}  a5 {[%clk 0:02:58]} 11. Nf3 {[%clk 0:02:52]}  Be7 {[%clk 0:02:51]} 12. g4 {[%clk 0:02:30]}  h5 {[%clk 0:02:49]} 13. f5 {[%clk 0:02:30]}  hxg4 {[%clk 0:02:45]} 14. fxe6 {[%clk 0:02:30]}  gxf3 {[%clk 0:02:43]} 15. Rxf3 {[%clk 0:02:21]}  Ndxe5 {[%clk 0:02:42]} 16. dxe5 {[%clk 0:01:33]}  Nxe5 {[%clk 0:02:43]} 17. exf7+ {[%clk 0:01:30]}  Kf8 {[%clk 0:02:41]} 18. Nf4 {[%clk 0:01:20]}  Rb6 {[%clk 0:02:32]} 19. Rf2 {[%clk 0:01:07]}  Bb7 {[%clk 0:02:24]} 20. Qe2 {[%clk 0:00:58]}  d4+ {[%clk 0:02:12]} 21. Kg1 {[%clk 0:00:57]}  Bf6 {[%clk 0:02:02]} 22. Nxg6+ {[%clk 0:00:45]}  Nxg6 {[%clk 0:01:55]} 23. Bxg6 {[%clk 0:00:46]}  Be7 {[%clk 0:01:38]} 24. Bf5 {[%clk 0:00:21]}  Qd5 {[%clk 0:01:34]} 25. Rg2 {[%clk 0:00:07]}  Qxf5 {[%clk 0:01:31]} 26. Bh6+ {[%clk 0:00:07]}  Rbxh6 {[%clk 0:01:30]} 27. Rf1 {[%clk 0:00:07]}  Qe4 {[%clk 0:01:27]} 28. Rg8+ {[%clk 0:00:07]}  Rxg8+ {[%clk 0:01:27]} 29. fxg8=Q+ {[%clk 0:00:06]}  Kxg8 {[%clk 0:01:28]} 30. Qxe4 {[%clk 0:00:07]}  Bxe4 {[%clk 0:01:27]} 0-1


[Site "https://www.chess.com"]

[Event "Titled Tuesday Blitz October 25 Early 2022"]
[White "Matlakov, Maxim"]
[Black "Paravyan, David"]
[WhiteFideId "4168003"]
[BlackFideId "4194985"]
[WhiteElo "2669"]
[BlackElo "2555"]
[Result "1-0"]
[Round "06"]
[TimeControl "180+1"]
[Date "2022.10.25"]
[WhiteClock "0:00:48"]
[BlackClock "0:00:04"]

1. Nf3 {[%clk 0:03:00]}  Nf6 {[%clk 0:02:59]} 2. g3 {[%clk 0:03:01]}  g6 {[%clk 0:03:00]} 3. Bg2 {[%clk 0:03:02]}  Bg7 {[%clk 0:03:00]} 4. O-O {[%clk 0:03:02]}  O-O {[%clk 0:03:01]} 5. d4 {[%clk 0:03:02]}  d5 {[%clk 0:03:02]} 6. c3 {[%clk 0:03:01]}  Nbd7 {[%clk 0:02:59]} 7. a4 {[%clk 0:03:01]}  Re8 {[%clk 0:02:58]} 8. Bf4 {[%clk 0:02:59]}  a5 {[%clk 0:02:58]} 9. Na3 {[%clk 0:02:59]}  c6 {[%clk 0:02:58]} 10. Rc1 {[%clk 0:02:59]}  Nh5 {[%clk 0:02:57]} 11. Bg5 {[%clk 0:02:58]}  h6 {[%clk 0:02:57]} 12. Be3 {[%clk 0:02:57]}  Nhf6 {[%clk 0:02:55]} 13. h3 {[%clk 0:02:56]}  Ne4 {[%clk 0:02:54]} 14. c4 {[%clk 0:02:55]}  Nd6 {[%clk 0:02:43]} 15. cxd5 {[%clk 0:02:50]}  cxd5 {[%clk 0:02:43]} 16. Bf4 {[%clk 0:02:50]}  Nb6 {[%clk 0:02:15]} 17. Bxd6 {[%clk 0:02:45]}  exd6 {[%clk 0:02:16]} 18. Nb5 {[%clk 0:02:45]}  Re7 {[%clk 0:02:17]} 19. e3 {[%clk 0:02:36]}  Bd7 {[%clk 0:02:14]} 20. b3 {[%clk 0:02:34]}  Bxb5 {[%clk 0:02:09]} 21. axb5 {[%clk 0:02:35]}  Qd7 {[%clk 0:02:09]} 22. Qd3 {[%clk 0:02:33]}  Ree8 {[%clk 0:02:08]} 23. h4 {[%clk 0:02:30]}  h5 {[%clk 0:02:03]} 24. Kh2 {[%clk 0:02:29]}  Bf6 {[%clk 0:01:57]} 25. Bh3 {[%clk 0:02:29]}  Qe7 {[%clk 0:01:57]} 26. Rc2 {[%clk 0:02:00]}  a4 {[%clk 0:01:57]} 27. bxa4 {[%clk 0:01:44]}  Rxa4 {[%clk 0:01:56]} 28. Rfc1 {[%clk 0:01:44]}  Nc4 {[%clk 0:01:53]} 29. Nd2 {[%clk 0:01:39]}  Ra3 {[%clk 0:01:53]} 30. Rc3 {[%clk 0:01:32]}  Ra2 {[%clk 0:00:48]} 31. R1c2 {[%clk 0:01:30]}  Rxc2 {[%clk 0:00:48]} 32. Qxc2 {[%clk 0:01:24]}  Nxd2 {[%clk 0:00:47]} 33. Qxd2 {[%clk 0:01:25]}  Qe4 {[%clk 0:00:47]} 34. Bg2 {[%clk 0:01:23]}  Qf5 {[%clk 0:00:45]} 35. Qc2 {[%clk 0:01:20]}  Qg4 {[%clk 0:00:34]} 36. Bxd5 {[%clk 0:01:08]}  Bxh4 {[%clk 0:00:22]} 37. gxh4 {[%clk 0:01:07]}  Qxh4+ {[%clk 0:00:23]} 38. Kg1 {[%clk 0:01:07]}  Qg5+ {[%clk 0:00:23]} 39. Bg2 {[%clk 0:01:07]}  h4 {[%clk 0:00:24]} 40. Rc8 {[%clk 0:01:04]}  Rxc8 {[%clk 0:00:15]} 41. Qxc8+ {[%clk 0:01:05]}  Kg7 {[%clk 0:00:16]} 42. b6 {[%clk 0:01:01]}  d5 {[%clk 0:00:14]} 43. Qxb7 {[%clk 0:00:56]}  h3 {[%clk 0:00:05]} 44. Qxd5 {[%clk 0:00:55]}  Qh4 {[%clk 0:00:06]} 45. Qe5+ {[%clk 0:00:49]}  f6 {[%clk 0:00:04]} 46. Qc7+ {[%clk 0:00:48]}  Kh6 {[%clk 0:00:04]} 47. Qf4+ {[%clk 0:00:48]} 1-0


[Site "https://www.chess.com"]

[Event "Titled Tuesday Blitz October 25 Early 2022"]
[White "Pap, Gyula"]
[Black "Milikow, Yoav"]
[WhiteFideId "725323"]
[BlackFideId "2822237"]
[WhiteElo "2519"]
[BlackElo "2341"]
[Result "0-1"]
[Round "06"]
[TimeControl "180+1"]
[Date "2022.10.25"]
[WhiteClock "0:01:40"]
[BlackClock "0:01:33"]

1. g3 {[%clk 0:03:00]}  e5 {[%clk 0:02:58]} 2. c4 {[%clk 0:03:00]}  c6 {[%clk 0:02:56]} 3. d4 {[%clk 0:02:56]}  e4 {[%clk 0:02:50]} 4. Nc3 {[%clk 0:02:53]}  d5 {[%clk 0:02:49]} 5. cxd5 {[%clk 0:02:54]}  cxd5 {[%clk 0:02:50]} 6. Qb3 {[%clk 0:02:51]}  Nc6 {[%clk 0:02:48]} 7. Qxd5 {[%clk 0:02:42]}  Qxd5 {[%clk 0:02:39]} 8. Nxd5 {[%clk 0:02:43]}  Nxd4 {[%clk 0:02:40]} 9. Nc7+ {[%clk 0:02:41]}  Kd8 {[%clk 0:02:38]} 10. Nxa8 {[%clk 0:02:42]}  Nc2+ {[%clk 0:02:39]} 11. Kd1 {[%clk 0:02:41]}  Nxa1 {[%clk 0:02:40]} 12. Bg2 {[%clk 0:02:35]}  f5 {[%clk 0:02:36]} 13. Bf4 {[%clk 0:02:33]}  Be6 {[%clk 0:02:13]} 14. Nh3 {[%clk 0:02:13]}  Bxa2 {[%clk 0:02:07]} 15. Kd2 {[%clk 0:02:12]}  Bb4+ {[%clk 0:02:02]} 16. Kc1 {[%clk 0:02:09]}  Nf6 {[%clk 0:01:57]} 17. b3 {[%clk 0:01:59]}  Ba3+ {[%clk 0:01:49]} 18. Kd2 {[%clk 0:01:59]}  Bb2 {[%clk 0:01:41]} 19. Ng5 {[%clk 0:01:40]}  Ke7 {[%clk 0:01:33]} 0-1


[Site "https://www.chess.com"]